[Event "26th Zadar Open 2019"]
[Site "Zadar"]
[Date "2019.12.18"]
[Round "5.2"]
[White "Blohberger, Felix"]
[Black "Stany, G.A."]
[Result "1-0"]
[ECO "B90"]
[WhiteElo "2434"]
[BlackElo "2526"]
[Annotator "ChessBase"]
[PlyCount "81"]
[EventDate "2019.12.15"]
[EventType "swiss"]
[EventCountry "CRO"]
[SourceTitle "playchess.com"]
[Source "ChessBase"]
[SourceQuality "1"]
[TimeControl "40/5400+30:1800+30"]

1. e4 {[%emt 0:00:30]} c5 {[%emt 0:00:30]} 2. Nf3 {[%emt 0:00:30]} d6 {[%emt 0:00:00]} 3. d4 {[%emt 0:00:00]} cxd4 {[%emt 0:00:00]} 4. Nxd4 {[%emt 0:00:00]} Nf6 {[%emt 0:00:00]} 5. Nc3 {[%emt 0:00:30]} a6 {[%emt 0:00:00]} 6. Be3 {[%emt 0:00:00]} Nbd7 {[%emt 0:05:30]} 7. g4 {[%emt 0:01:00]} h6 {[%emt 0:00:30]} 8. Rg1 {[%emt 0:02:30]} b5 {[%emt 0:02:30]} 9. f3 {[%emt 0:08:30]} Bb7 {[%emt 0:04:30]} 10. a3 {[%emt 0:07:30]} Rc8 {[%emt 0:05:30]} 11. Qd2 {[%emt 0:09:30]} e5 {[%emt 0:14:30]} 12. Nb3 {[%emt 0:07:30]} d5 {[%emt 0:22:30]} 13. exd5 {[%emt 0:06:30]} Nb6 {[%emt 0:01:30]} 14. Na5 {[%emt 0:04:30]} Bxd5 {[%emt 0:00:30]} 15. O-O-O {[%emt 0:15:30]} b4 {[%emt 0:10:30]} 16. Bxb6 {[%emt 0:00:30]} bxc3 {[%emt 0:00:00]} 17. Qe3 {[%emt 0:01:30]} Qd7 {[%emt 0:10:00]} 18. Bxa6 {[%emt 0:02:30]} Be7 {[%emt 0:05:47]} 19. Bxc8 {[%emt 0:02:30]} cxb2+ {[%emt 0:01:23]} 20. Kb1 {[%emt 0:00:30]} Qxc8 {[%emt 0:00:04]} 21. Qxe5 {[%emt 0:01:30]} Be6 {[%emt 0:00:04]} 22. Qb5+ {[%emt 0:07:38]} Bd7 {[%emt 0:01:33]} 23. Qe2 {[%emt 0:05:03]} Be6 {[%emt 0:01:13]} 24. Qb5+ {[%emt 0:02:12]} Bd7 {[%emt 0:00:05]} 25. Qe5 {[%emt 0:00:03]} Be6 {[%emt 0:00:50]} 26. f4 {[%emt 0:00:25]} O-O {[%emt 0:06:51]} 27. f5 {[%emt 0:01:07]} Nd5 {[%emt 0:00:40]} 28. Rxd5 {[%emt 0:01:10]} Bf6 {[%emt 0:00:05]} 29. Qd6 {[%emt 0:01:25]} Bxd5 {[%emt 0:00:35]} 30. Qxd5 {[%emt 0:00:06]} Qa6 {[%emt 0:00:05]} 31. Qb7 {[%emt 0:07:00]} Qxb7 {[%emt 0:01:53]} 32. Nxb7 {[%emt 0:00:08]} Rb8 {[%emt 0:00:03]} 33. Nc5 {[%emt 0:00:26]} Rxb6 {[%emt 0:00:53]} 34. Nd7 {[%emt 0:00:05]} Bd4 {[%emt 0:00:04]} 35. Rd1 {[%emt 0:03:25]} Rd6 {[%emt 0:00:03]} 36. c3 {[%emt 0:00:37]} Be5 {[%emt 0:00:12]} 37. Rxd6 {[%emt 0:00:07]} Bxd6 {[%emt 0:00:03]} 38. a4 {[%emt 0:00:16]} Bxh2 {[%emt 0:00:05]} 39. a5 {[%emt 0:00:06]} Bg1 {[%emt 0:02:40]} 40. c4 {[%emt 0:01:19]} Ba7 {[%emt 0:00:06]} 41. c5 {[%emt 0:30:16]} 1-0

[Event "26th Zadar Open 2019"]
[Site "Zadar"]
[Date "2019.12.18"]
[Round "5.3"]
[White "Saric, Ante"]
[Black "Predojevic, Borki"]
[Result "1/2-1/2"]
[ECO "E05"]
[WhiteElo "2556"]
[BlackElo "2616"]
[Annotator "RC"]
[PlyCount "34"]
[EventDate "2019.12.15"]
[EventType "swiss"]
[EventCountry "CRO"]
[SourceTitle "playchess.com"]
[Source "ChessBase"]
[SourceQuality "1"]
[TimeControl "40/5400+30:1800+30"]

1. d4 {[%emt 0:00:30]} Nf6 {[%emt 0:00:30]} 2. c4 {[%emt 0:00:00]} e6 {[%emt 0:00:00]} 3. Nf3 {[%emt 0:00:00]} d5 {[%emt 0:00:00]} 4. g3 {[%emt 0:00:00]} Be7 {[%emt 0:00:30]} 5. Bg2 {[%emt 0:00:00]} O-O {[%emt 0:00:30]} 6. O-O {[%emt 0:00:30]} dxc4 {[%emt 0:01:30]} 7. Ne5 {[%emt 0:00:30]} Nc6 {[%emt 0:00:30]} 8. Bxc6 {[%emt 0:01:30]} bxc6 {[%emt 0:00:30]} 9. Nxc6 {[%emt 0:00:00]} Qe8 {[%emt 0:00:00]} 10. Nxe7+ {[%emt 0:00:00]} Qxe7 {[%emt 0:00:00]} 11. Qa4 {[%emt 0:00:30]} e5 {[%emt 0:00:30]} 12. dxe5 {[%emt 0:00:30]} Qxe5 {[%emt 0:00:00]} 13. Qxc4 {[%emt 0:00:30]} Be6 {[%emt 0:00:00]} 14. Qc2 {[%emt 0:00:30]} Bf5 {[%emt 0:00:30]} 15. Qc4 {[%emt 0:00:00]} Be6 {[%emt 0:00:00]} 16. Qc2 {[%emt 0:00:00]} Bf5 {[%emt 0:00:00]} 17. Qc4 {[%emt 0:00:00]} Be6 {[%emt 0:00:30]} 1/2-1/2

[Event "26th Zadar Open 2019"]
[Site "Zadar"]
[Date "2019.12.18"]
[Round "5.4"]
[White "Mosesov, Danyil"]
[Black "Pecnik, Leo"]
[Result "1-0"]
[ECO "E90"]
[WhiteElo "2290"]
[BlackElo "2326"]
[Annotator "NA"]
[PlyCount "53"]
[EventDate "2019.12.15"]
[EventType "swiss"]
[EventCountry "CRO"]
[SourceTitle "playchess.com"]
[Source "ChessBase"]
[SourceQuality "1"]
[TimeControl "40/5400+30:1800+30"]

1. d4 {[%emt 0:00:30]} Nf6 {[%emt 0:00:30]} 2. c4 {[%emt 0:00:30]} g6 {[%emt 0:00:00]} 3. Nc3 {[%emt 0:00:00]} Bg7 {[%emt 0:00:00]} 4. e4 {[%emt 0:00:00]} d6 {[%emt 0:00:00]} 5. h3 {[%emt 0:00:00]} O-O $14 {[%emt 0:00:00]} 6. Be3 {[%emt 0:00:00]} c5 {[%emt 0:01:30]} 7. Nf3 {[%emt 0:00:00]} cxd4 {[%emt 0:00:30]} 8. Nxd4 {[%emt 0:00:00]} b6 {[%emt 0:00:30]} 9. Qd2 {[%emt 0:00:30]} Bb7 {[%emt 0:00:00]} 10. f3 {[%emt 0:00:00]} Nbd7 {[%emt 0:04:00]} 11. O-O-O {[%emt 0:04:00]} a6 {[%emt 0:02:30]} 12. Bh6 {[%emt 0:03:30]} e5 {[%emt 0:36:30]} 13. Bxg7 {[%emt 0:09:30]} Kxg7 {[%emt 0:00:00]} 14. Nc2 {[%emt 0:01:30]} d5 {[%emt 0:12:00]} 15. exd5 {[%emt 0:02:30]} b5 {[%emt 0:00:30]} 16. cxb5 {[%emt 0:04:30]} Qa5 {[%emt 0:07:30]} 17. Na3 {[%emt 0:09:30]} axb5 {[%emt 0:05:30]} 18. Bxb5 {[%emt 0:03:30]} Nc5 {[%emt 0:07:55]} 19. Qe3 {[%emt 0:11:30]} Rfc8 {[%emt 0:06:29]} 20. d6 {[%emt 0:02:30]} Na4 {[%emt 0:09:02]} 21. Bxa4 {[%emt 0:03:30]} Rxc3+ {[%emt 0:01:32]} 22. Qxc3 {[%emt 0:03:30]} Rc8 {[%emt 0:00:05]} 23. Nc4 {[%emt 0:00:30]} Qxa4 {[%emt 0:00:13]} 24. b3 {[%emt 0:00:30]} Qxa2 {[%emt 0:00:20]} 25. d7 {[%emt 0:00:30]} Nxd7 {[%emt 0:00:06]} 26. Rxd7 {[%emt 0:00:30]} Ba6 {[%emt 0:00:05]} 27. Rd2 {[%emt 0:01:30]} 1-0

[Event "26th Zadar Open 2019"]
[Site "Zadar"]
[Date "2019.12.18"]
[Round "5.5"]
[White "Dev, Shah"]
[Black "Rezan, Sasa"]
[Result "1-0"]
[ECO "E46"]
[WhiteElo "2242"]
[BlackElo "2415"]
[Annotator "NA"]
[PlyCount "63"]
[EventDate "2019.12.15"]
[EventType "swiss"]
[EventCountry "CRO"]
[SourceTitle "playchess.com"]
[Source "ChessBase"]
[SourceQuality "1"]
[TimeControl "40/5400+30:1800+30"]

1. d4 {[%emt 0:00:30]} Nf6 {[%emt 0:00:30]} 2. c4 {[%emt 0:00:30]} e6 {[%emt 0:00:00]} 3. Nc3 {[%emt 0:00:30]} Bb4 {[%emt 0:00:00]} 4. e3 {[%emt 0:00:00]} O-O {[%emt 0:00:30]} 5. Nge2 {[%emt 0:00:00]} d5 {[%emt 0:00:30]} 6. a3 {[%emt 0:00:30]} Bd6 {[%emt 0:00:30]} 7. Ng3 {[%emt 0:00:00]} c6 $11 {[%emt 0:01:30]} 8. Bd3 {[%emt 0:00:00]} e5 {[%emt 0:01:30]} 9. cxd5 {[%emt 0:00:30]} cxd5 {[%emt 0:05:30]} 10. Nb5 {[%emt 0:19:30]} Bg4 {[%emt 0:20:30]} 11. f3 {[%emt 0:01:30]} e4 {[%emt 0:06:30]} 12. Nxd6 {[%emt 0:00:30]} Qxd6 {[%emt 0:00:30]} 13. fxg4 {[%emt 0:04:30]} exd3 {[%emt 0:00:30]} 14. Qxd3 {[%emt 0:00:30]} Nxg4 {[%emt 0:03:30]} 15. O-O {[%emt 0:00:30]} Nc6 {[%emt 0:00:30]} 16. Rf4 {[%emt 0:02:30]} Nh6 {[%emt 0:08:30]} 17. Bd2 {[%emt 0:00:30]} Rae8 {[%emt 0:04:30]} 18. Raf1 {[%emt 0:02:30]} Re6 {[%emt 0:01:30]} 19. Bc3 {[%emt 0:14:30]} Rfe8 {[%emt 0:02:30]} 20. R1f3 {[%emt 0:03:30]} a6 {[%emt 0:20:30]} 21. Rh4 {[%emt 0:16:30]} Qe7 {[%emt 0:05:24]} 22. Rh5 {[%emt 0:00:30]} Qd8 {[%emt 0:08:23]} 23. Nf5 {[%emt 0:00:30]} Nxf5 {[%emt 0:00:30]} 24. Qxf5 {[%emt 0:00:30]} h6 {[%emt 0:02:52]} 25. Qxf7+ {[%emt 0:00:30]} Kh8 {[%emt 0:00:26]} 26. Qxb7 {[%emt 0:09:30]} R8e7 {[%emt 0:01:58]} 27. Qb3 {[%emt 0:00:30]} Rxe3 {[%emt 0:01:15]} 28. Qxd5 {[%emt 0:01:30]} Qe8 {[%emt 0:00:45]} 29. Rhf5 {[%emt 0:00:30]} Rxf3 {[%emt 0:00:22]} 30. Qxf3 {[%emt 0:00:30]} Kh7 {[%emt 0:01:43]} 31. Rf8 {[%emt 0:01:30]} Qg6 {[%emt 0:01:06]} 32. Qf5 {[%emt 0:00:30]} 1-0

[Event "26th Zadar Open 2019"]
[Site "Zadar"]
[Date "2019.12.18"]
[Round "5.6"]
[White "Kozul, Zdenko"]
[Black "Lye, Lik Zang"]
[Result "1-0"]
[ECO "A35"]
[WhiteElo "2590"]
[BlackElo "2379"]
[Annotator "ChessBase"]
[PlyCount "153"]
[EventDate "2019.12.15"]
[EventType "swiss"]
[EventCountry "CRO"]
[SourceTitle "playchess.com"]
[Source "ChessBase"]
[SourceQuality "1"]
[TimeControl "40/5400+30:1800+30"]

1. Nf3 {[%emt 0:00:30]} c5 {[%emt 0:00:30]} 2. c4 {[%emt 0:00:00]} Nc6 {[%emt 0:00:00]} 3. e3 {[%emt 0:01:00]} e5 {[%emt 0:04:00]} 4. Nc3 {[%emt 0:00:30]} f5 {[%emt 0:01:30]} 5. d4 {[%emt 0:05:30]} e4 {[%emt 0:00:30]} 6. d5 {[%emt 0:02:30]} exf3 {[%emt 0:00:30]} 7. dxc6 {[%emt 0:00:30]} dxc6 {[%emt 0:01:30]} 8. Qxd8+ {[%emt 0:04:30]} Kxd8 {[%emt 0:00:30]} 9. gxf3 {[%emt 0:00:00]} Nf6 {[%emt 0:04:30]} 10. b3 {[%emt 0:08:00]} Bd6 {[%emt 0:09:30]} 11. Bb2 {[%emt 0:00:30]} Ke7 {[%emt 0:01:30]} 12. O-O-O {[%emt 0:01:30]} Be6 {[%emt 0:00:30]} 13. f4 {[%emt 0:11:30]} Bc7 {[%emt 0:13:30]} 14. Na4 {[%emt 0:03:30]} b6 {[%emt 0:02:30]} 15. Bg2 {[%emt 0:00:30]} Ng4 {[%emt 0:10:30]} 16. Rdf1 {[%emt 0:08:30]} Bd7 {[%emt 0:02:30]} 17. Bf3 {[%emt 0:03:30]} Rhg8 {[%emt 0:05:30]} 18. h3 {[%emt 0:00:30]} Nf6 {[%emt 0:01:30]} 19. Rfg1 {[%emt 0:00:30]} g6 {[%emt 0:03:30]} 20. Rg2 {[%emt 0:03:30]} Rad8 {[%emt 0:07:30]} 21. Ba1 {[%emt 0:07:30]} Bd6 {[%emt 0:04:30]} 22. Rhg1 {[%emt 0:04:30]} b5 {[%emt 0:03:30]} 23. Bxf6+ {[%emt 0:03:30]} Kxf6 {[%emt 0:00:30]} 24. Nb2 {[%emt 0:00:30]} Kf7 {[%emt 0:07:33]} 25. h4 {[%emt 0:00:30]} Be7 {[%emt 0:02:56]} 26. Nd3 {[%emt 0:09:30]} Bd6 {[%emt 0:03:56]} 27. Kc2 {[%emt 0:00:30]} Be6 {[%emt 0:02:24]} 28. Kc3 {[%emt 0:00:30]} bxc4 {[%emt 0:03:04]} 29. bxc4 {[%emt 0:00:30]} Bc7 {[%emt 0:00:25]} 30. Bxc6 {[%emt 0:00:52]} Ba5+ {[%emt 0:00:34]} 31. Kc2 {[%emt 0:00:08]} Kf6 {[%emt 0:00:35]} 32. Bb5 {[%emt 0:12:52]} Rd6 {[%emt 0:00:42]} 33. Nxc5 {[%emt 0:00:41]} Bxc4 {[%emt 0:00:42]} 34. Bxc4 {[%emt 0:00:17]} Rc8 {[%emt 0:00:14]} 35. Nb3 {[%emt 0:01:10]} Rxc4+ {[%emt 0:00:17]} 36. Kb1 {[%emt 0:00:05]} Bb4 {[%emt 0:01:50]} 37. h5 {[%emt 0:00:15]} Kf7 {[%emt 0:00:48]} 38. hxg6+ {[%emt 0:00:34]} hxg6 {[%emt 0:00:07]} 39. Rh2 {[%emt 0:00:11]} a5 {[%emt 0:01:53]} 40. Rh7+ {[%emt 0:00:20]} Kf6 {[%emt 0:00:18]} 41. Ra7 {[%emt 0:30:22]} Rb6 {[%emt 0:31:11]} 42. Rd1 {[%emt 0:00:00]} Bc3 {[%emt 0:00:00]} 43. Kc2 {[%emt 0:00:00]} Bb4+ {[%emt 0:00:00]} 44. Kd3 {[%emt 0:00:00]} Rc3+ {[%emt 0:00:00]} 45. Ke2 {[%emt 0:00:00]} Rc2+ {[%emt 0:00:00]} 46. Kf3 {[%emt 0:00:00]} Rxa2 {[%emt 0:00:00]} 47. Rdd7 {[%emt 0:00:00]} Be1 {[%emt 0:00:00]} 48. Rf7+ {[%emt 0:00:00]} Ke6 {[%emt 0:00:00]} 49. Nc5+ {[%emt 0:00:00]} Kd5 {[%emt 0:00:00]} 50. Nd3 {[%emt 0:00:00]} Bb4 {[%emt 0:00:00]} 51. Rg7 {[%emt 0:00:00]} Kc4 {[%emt 0:00:22]} 52. Nxb4 {[%emt 0:04:31]} Kxb4 {[%emt 0:02:13]} 53. Rab7 {[%emt 0:00:05]} Rxb7 {[%emt 0:01:50]} 54. Rxb7+ {[%emt 0:00:07]} Ka3 {[%emt 0:01:06]} 55. Rb6 {[%emt 0:00:23]} a4 {[%emt 0:00:42]} 56. Rxg6 {[%emt 0:00:28]} Rb2 {[%emt 0:00:08]} 57. Re6 {[%emt 0:01:36]} Rb5 {[%emt 0:00:20]} 58. e4 {[%emt 0:01:10]} Kb4 {[%emt 0:01:22]} 59. exf5 {[%emt 0:01:25]} a3 {[%emt 0:00:35]} 60. f6 {[%emt 0:00:49]} a2 {[%emt 0:00:25]} 61. Ra6 {[%emt 0:00:16]} Ra5 {[%emt 0:00:24]} 62. f7 {[%emt 0:00:59]} Rf5 {[%emt 0:00:48]} 63. Rxa2 {[%emt 0:00:20]} Rxf7 {[%emt 0:00:02]} 64. Kg4 {[%emt 0:00:48]} Kc5 {[%emt 0:00:32]} 65. Rd2 {[%emt 0:00:06]} Rf8 {[%emt 0:00:58]} 66. f5 {[%emt 0:00:06]} Rg8+ {[%emt 0:00:29]} 67. Kh5 {[%emt 0:00:06]} Rf8 {[%emt 0:00:12]} 68. Kg6 {[%emt 0:00:05]} Rg8+ {[%emt 0:00:03]} 69. Kf7 {[%emt 0:00:05]} Rg4 {[%emt 0:00:03]} 70. f6 {[%emt 0:00:04]} Rf4 {[%emt 0:00:13]} 71. Ke7 {[%emt 0:00:06]} Re4+ {[%emt 0:00:01]} 72. Kf8 {[%emt 0:00:05]} Rf4 {[%emt 0:00:10]} 73. f7 {[%emt 0:00:05]} Kc6 {[%emt 0:00:46]} 74. f3 {[%emt 0:00:05]} Rxf3 {[%emt 0:00:19]} 75. Rg2 {[%emt 0:00:06]} Kd7 {[%emt 0:00:44]} 76. Kg7 {[%emt 0:00:07]} Ke7 {[%emt 0:00:03]} 77. Re2+ {[%emt 0:00:04]} 1-0

[Event "26th Zadar Open 2019"]
[Site "Zadar"]
[Date "2019.12.18"]
[Round "5.7"]
[White "Livaic, Leon"]
[Black "Bhambure, Shantanu"]
[Result "0-1"]
[ECO "E14"]
[WhiteElo "2505"]
[BlackElo "2340"]
[Annotator "ChessBase"]
[PlyCount "74"]
[EventDate "2019.12.15"]
[EventType "swiss"]
[EventCountry "CRO"]
[SourceTitle "playchess.com"]
[Source "ChessBase"]
[SourceQuality "1"]
[TimeControl "40/5400+30:1800+30"]

1. d4 {[%emt 0:00:30]} Nf6 {[%emt 0:00:30]} 2. c4 {[%emt 0:01:30]} e6 {[%emt 0:00:00]} 3. Nf3 {[%emt 0:00:30]} b6 {[%emt 0:00:00]} 4. e3 {[%emt 0:02:30]} Bb7 {[%emt 0:00:30]} 5. Bd3 {[%emt 0:00:30]} d5 {[%emt 0:00:30]} 6. Nbd2 {[%emt 0:01:30]} Nbd7 {[%emt 0:01:30]} 7. O-O {[%emt 0:01:30]} Bd6 {[%emt 0:01:30]} 8. Qc2 {[%emt 0:04:30]} O-O {[%emt 0:13:30]} 9. e4 {[%emt 0:01:30]} dxe4 {[%emt 0:02:30]} 10. Nxe4 {[%emt 0:00:00]} Nxe4 {[%emt 0:00:30]} 11. Bxe4 {[%emt 0:00:00]} Bxe4 {[%emt 0:00:00]} 12. Qxe4 {[%emt 0:00:30]} c5 {[%emt 0:01:00]} 13. Rd1 {[%emt 0:05:30]} Qc7 {[%emt 0:10:30]} 14. b3 {[%emt 0:00:30]} Rfd8 {[%emt 0:03:30]} 15. Bg5 {[%emt 0:09:30]} Nf6 {[%emt 0:03:30]} 16. Bxf6 {[%emt 0:00:30]} gxf6 {[%emt 0:00:00]} 17. d5 {[%emt 0:06:30]} Qe7 {[%emt 0:06:00]} 18. Qh4 {[%emt 0:09:30]} Kg7 {[%emt 0:08:30]} 19. Re1 {[%emt 0:00:30]} Re8 {[%emt 0:01:30]} 20. Qh5 {[%emt 0:02:30]} Kh8 {[%emt 0:04:30]} 21. Re4 {[%emt 0:10:30]} Rg8 {[%emt 0:03:30]} 22. Rae1 {[%emt 0:00:30]} f5 {[%emt 0:10:30]} 23. Rh4 {[%emt 0:04:30]} Rg7 {[%emt 0:00:30]} 24. Qh6 {[%emt 0:00:00]} Re8 {[%emt 0:06:30]} 25. Rh5 {[%emt 0:00:00]} Qd7 {[%emt 0:04:01]} 26. Kf1 {[%emt 0:08:30]} Re7 {[%emt 0:08:57]} 27. Ng5 {[%emt 0:05:30]} Bf4 {[%emt 0:01:33]} 28. Qf6 {[%emt 0:13:10]} Kg8 {[%emt 0:02:31]} 29. dxe6 {[%emt 0:03:04]} fxe6 {[%emt 0:00:53]} 30. Nh3 {[%emt 0:03:54]} Bd2 {[%emt 0:04:02]} 31. Re2 {[%emt 0:00:37]} Qd3 {[%emt 0:00:49]} 32. Qa1 {[%emt 0:01:02]} Bc3 {[%emt 0:01:27]} 33. Qc1 {[%emt 0:00:15]} Rd7 {[%emt 0:00:28]} 34. g3 {[%emt 0:00:50]} Bd2 {[%emt 0:00:33]} 35. Qa1 {[%emt 0:01:49]} f4 {[%emt 0:00:37]} 36. Nxf4 {[%emt 0:02:38]} Bxf4 {[%emt 0:00:11]} 37. Qf6 {[%emt 0:00:03]} Qd1+ {[%emt 0:00:20]} 0-1

[Event "26th Zadar Open 2019"]
[Site "Zadar"]
[Date "2019.12.18"]
[Round "5.8"]
[White "Hnydiuk, Aleksander"]
[Black "Ghersinich, Enrico"]
[Result "0-1"]
[ECO "D40"]
[WhiteElo "2423"]
[BlackElo "2157"]
[Annotator "NA"]
[PlyCount "110"]
[EventDate "2019.12.15"]
[EventType "swiss"]
[EventCountry "CRO"]
[SourceTitle "playchess.com"]
[Source "ChessBase"]
[SourceQuality "1"]
[TimeControl "40/5400+30:1800+30"]

1. Nf3 {[%emt 0:07:30]} d5 {[%emt 0:00:30]} 2. d4 {[%emt 0:00:30]} Nf6 {[%emt 0:00:30]} 3. c4 {[%emt 0:00:30]} dxc4 {[%emt 0:00:30]} 4. e3 {[%emt 0:00:00]} e6 {[%emt 0:00:30]} 5. Bxc4 {[%emt 0:00:00]} a6 {[%emt 0:00:00]} 6. O-O {[%emt 0:00:00]} c5 {[%emt 0:00:00]} 7. Nc3 {[%emt 0:00:00]} Nc6 {[%emt 0:00:30]} 8. a3 {[%emt 0:00:30]} b5 {[%emt 0:02:30]} 9. Ba2 {[%emt 0:00:30]} Bb7 {[%emt 0:00:30]} 10. Qe2 {[%emt 0:00:30]} Qc7 {[%emt 0:00:30]} 11. Rd1 {[%emt 0:04:30]} Rd8 {[%emt 0:00:30]} 12. d5 $11 {[%emt 0:01:30]} exd5 {[%emt 0:00:30]} 13. Nxd5 {[%emt 0:00:30]} Nxd5 {[%emt 0:00:30]} 14. Bxd5 {[%emt 0:00:00]} Be7 {[%emt 0:03:30]} 15. e4 {[%emt 0:01:00]} O-O {[%emt 0:01:30]} 16. g3 {[%emt 0:14:30]} c4 {[%emt 0:16:30]} 17. Bf4 {[%emt 0:01:30]} Qb6 {[%emt 0:00:30]} 18. h4 {[%emt 0:16:30]} Bc5 {[%emt 0:05:30]} 19. Kg2 {[%emt 0:05:30]} Bc8 {[%emt 0:02:30]} 20. Be3 {[%emt 0:38:10]} Bxe3 {[%emt 0:12:30]} 21. Qxe3 {[%emt 0:00:34]} Qxe3 {[%emt 0:00:30]} 22. fxe3 {[%emt 0:00:37]} Ne7 {[%emt 0:00:30]} 23. Ne5 {[%emt 0:01:15]} Nxd5 {[%emt 0:01:30]} 24. exd5 {[%emt 0:01:09]} Rfe8 {[%emt 0:02:30]} 25. Nc6 {[%emt 0:01:28]} Rd6 {[%emt 0:00:00]} 26. a4 {[%emt 0:01:55]} Bb7 {[%emt 0:01:00]} 27. axb5 {[%emt 0:00:16]} axb5 {[%emt 0:00:00]} 28. Nb4 {[%emt 0:02:17]} Rxe3 {[%emt 0:04:00]} 29. Ra7 {[%emt 0:00:33]} Bc8 {[%emt 0:00:30]} 30. Ra8 {[%emt 0:00:23]} Re8 {[%emt 0:00:30]} 31. Kf2 {[%emt 0:00:37]} g6 {[%emt 0:08:30]} 32. Rb8 {[%emt 0:00:05]} Rf6+ {[%emt 0:00:30]} 33. Kg1 {[%emt 0:00:04]} Rf3 {[%emt 0:00:00]} 34. d6 {[%emt 0:01:00]} Rxg3+ {[%emt 0:04:00]} 35. Kf2 {[%emt 0:00:01]} Rb3 {[%emt 0:00:30]} 36. Rxc8 {[%emt 0:01:33]} Rxb2+ {[%emt 0:00:30]} 37. Kf3 {[%emt 0:00:02]} Rxc8 {[%emt 0:00:30]} 38. d7 {[%emt 0:00:01]} Rd8 {[%emt 0:09:30]} 39. Nc6 {[%emt 0:00:02]} Rxd7 {[%emt 0:00:30]} 40. Rxd7 {[%emt 0:00:02]} c3 {[%emt 0:00:00]} 41. Rc7 {[%emt 0:09:56]} b4 {[%emt 0:03:00]} 42. h5 {[%emt 0:01:30]} gxh5 {[%emt 0:01:30]} 43. Ne7+ {[%emt 0:01:30]} Kg7 {[%emt 0:01:30]} 44. Rc6 {[%emt 0:00:30]} f6 {[%emt 0:00:30]} 45. Nd5 {[%emt 0:03:42]} c2 {[%emt 0:03:30]} 46. Kf4 {[%emt 0:04:35]} b3 {[%emt 0:02:30]} 47. Rc7+ {[%emt 0:02:50]} Kf8 {[%emt 0:01:30]} 48. Rc8+ {[%emt 0:09:58]} Kf7 {[%emt 0:00:30]} 49. Rc7+ {[%emt 0:00:20]} Ke8 {[%emt 0:00:00]} 50. Rc8+ {[%emt 0:02:00]} Kd7 {[%emt 0:00:00]} 51. Nb6+ {[%emt 0:00:04]} Ke7 {[%emt 0:01:30]} 52. Nd5+ {[%emt 0:00:36]} Kd6 {[%emt 0:00:30]} 53. Nb4 {[%emt 0:00:41]} Rb1 {[%emt 0:01:30]} 54. Nxc2 {[%emt 0:00:36]} Rc1 {[%emt 0:00:30]} 55. Ke3 {[%emt 0:00:31]} Rxc2 {[%emt 0:00:30]} 0-1

[Event "26th Zadar Open 2019"]
[Site "Zadar"]
[Date "2019.12.18"]
[Round "5.9"]
[White "Rudolf, Michal"]
[Black "Nguyen, Piotr"]
[Result "1/2-1/2"]
[ECO "C01"]
[WhiteElo "2328"]
[BlackElo "2413"]
[Annotator "NA"]
[PlyCount "64"]
[EventDate "2019.12.15"]
[EventType "swiss"]
[EventCountry "CRO"]
[SourceTitle "playchess.com"]
[Source "ChessBase"]
[SourceQuality "1"]
[TimeControl "40/5400+30:1800+30"]

1. e4 {[%emt 0:00:30]} e6 {[%emt 0:00:30]} 2. d4 {[%emt 0:00:00]} d5 {[%emt 0:00:00]} 3. exd5 {[%emt 0:01:00]} exd5 {[%emt 0:00:00]} 4. Nf3 {[%emt 0:00:30]} Nc6 {[%emt 0:05:30]} 5. Bb5 {[%emt 0:00:30]} Bd6 {[%emt 0:00:30]} 6. c4 {[%emt 0:00:30]} dxc4 {[%emt 0:01:30]} 7. d5 {[%emt 0:00:00]} a6 {[%emt 0:00:30]} 8. Ba4 {[%emt 0:00:00]} b5 {[%emt 0:00:00]} 9. dxc6 {[%emt 0:00:00]} bxa4 {[%emt 0:00:00]} 10. O-O {[%emt 0:00:00]} Ne7 {[%emt 0:01:30]} 11. Qxa4 {[%emt 0:03:30]} O-O {[%emt 0:00:30]} 12. Nbd2 $11 {[%emt 0:03:30]} c3 {[%emt 0:04:30]} 13. bxc3 {[%emt 0:02:30]} Qe8 {[%emt 0:03:30]} 14. Nd4 {[%emt 0:02:30]} Bb7 {[%emt 0:01:30]} 15. Nc4 {[%emt 0:03:30]} Nxc6 {[%emt 0:01:30]} 16. Nxd6 {[%emt 0:00:30]} cxd6 {[%emt 0:00:30]} 17. Nxc6 {[%emt 0:00:00]} Qxc6 {[%emt 0:00:30]} 18. Qxc6 {[%emt 0:00:00]} Bxc6 {[%emt 0:00:00]} 19. Bf4 {[%emt 0:00:30]} d5 {[%emt 0:01:00]} 20. Rfe1 {[%emt 0:00:30]} Rfe8 {[%emt 0:00:30]} 21. f3 {[%emt 0:00:30]} f6 {[%emt 0:00:30]} 22. Kf2 {[%emt 0:00:30]} Bb5 {[%emt 0:01:30]} 23. Bd6 {[%emt 0:13:30]} Kf7 {[%emt 0:00:30]} 24. Rxe8 {[%emt 0:01:30]} Rxe8 {[%emt 0:00:30]} 25. Re1 {[%emt 0:00:30]} Rxe1 {[%emt 0:00:00]} 26. Kxe1 {[%emt 0:00:00]} Ke6 {[%emt 0:01:00]} 27. Bc5 {[%emt 0:00:00]} Bc4 {[%emt 0:00:00]} 28. a3 {[%emt 0:00:30]} Bb5 {[%emt 0:00:00]} 29. Bd4 {[%emt 0:00:00]} Bc4 {[%emt 0:00:30]} 30. Bc5 {[%emt 0:00:00]} Bb5 {[%emt 0:00:00]} 31. Bd4 {[%emt 0:00:00]} Bc4 {[%emt 0:00:00]} 32. Bc5 {[%emt 0:00:00]} Bb5 {[%emt 0:00:00]} 1/2-1/2